fUST/lending_fUST_20250811
["ID","MTS","AMOUNT","RATE_DAILY","PERIOD"]
[378590958,1754919077314,-826.6,0.00020273,2]
[378590959,1754919077324,-460.0,0.00020273,2]
[378590960,1754919077333,-460.0,0.00020273,2]
[378590961,1754919077343,-498.41,0.00020273,2]
[378590962,1754919077352,-967.31,0.00020273,2]
[378590963,1754919077361,-204.96227025,0.00020273,2]
[378590964,1754919077371,-496.37,0.00020273,2]
[378590965,1754919077380,-460.0,0.00020273,2]
[378590966,1754919077390,-460.0,0.00020273,2]
[378590967,1754919077399,-460.0,0.00020273,2]
[378590968,1754919077408,-187.843204,0.00020273,2]
[378590969,1754919077418,-460.0,0.00020273,2]
[378590970,1754919077428,-460.0,0.00020273,2]
[378590971,1754919077437,-187.843204,0.00020273,2]
[378590972,1754919077447,-460.0,0.00020273,2]
[378590973,1754919077456,-1552.45,0.00020273,2]
[378590974,1754919077465,-460.0,0.00020273,2]
[378590975,1754919077475,-460.0,0.00020273,2]
[378590976,1754919077488,-460.0,0.00020273,2]
[378590977,1754919077497,-460.0,0.00020273,2]
[378590978,1754919077506,-2280.34,0.00020273,2]
[378590979,1754919077516,-497.59,0.00020273,2]
[378590980,1754919077526,-5522.57,0.00020273,2]
[378590981,1754919077535,-460.0,0.00020273,2]
[378590982,1754919077545,-460.0,0.00020273,2]
[378590983,1754919077554,-460.0,0.00020273,2]
[378590984,1754919077564,-495.38,0.00020273,2]
[378590985,1754919077574,-460.0,0.00020273,2]
[378590986,1754919077583,-1272.79,0.00020273,2]
[378590987,1754919077593,-460.0,0.00020273,2]
[378590988,1754919077602,-3242.83,0.00020273,2]
[378590989,1754919077611,-739.66,0.00020273,2]
[378590990,1754919077621,-460.0,0.00020273,2]
[378590991,1754919077630,-151.0,0.00020273,2]
[378590992,1754919077639,-1767.27,0.00020273,2]
[378590993,1754919077648,-460.0,0.00020273,2]
[378590994,1754919077658,-210.13515462,0.00020273,2]
[378590995,1754919077667,-4693.73,0.00020273,2]
[378590996,1754919077677,-972.77,0.00020273,2]
[378590997,1754919077686,-1414.33,0.00020273,2]
[378590998,1754919077695,-151.0,0.00020273,2]
[378590999,1754919077705,-460.0,0.00020273,2]
[378591000,1754919077714,-2946.27,0.00020273,2]
[378591001,1754919077723,-392.26436379,0.00020273,2]
[378591002,1754919077735,-816.78,0.00020273,2]
[378591003,1754919077744,-460.0,0.00020273,2]
[378591004,1754919077754,-1221.01,0.00020273,2]
[378591005,1754919077764,-1240.59,0.00020273,2]
[378591006,1754919077773,-460.0,0.00020273,2]
[378591007,1754919077782,-460.0,0.00020273,2]
[378591008,1754919077791,-5792.19,0.00020273,2]
[378591009,1754919077801,-2058.68,0.00020273,2]
[378591010,1754919077809,-809.88,0.00020273,2]
[378591011,1754919077819,-479.63,0.00020273,2]
[378591012,1754919077828,-562.29578521,0.00020273,2]
[378591013,1754919077837,-1568.27,0.00020273,2]
[378591014,1754919077846,-460.0,0.00020273,2]
[378591015,1754919077855,-460.0,0.00020273,2]
[378591016,1754919077864,-460.0,0.00020273,2]
[378591017,1754919077874,-581.2765512,0.00020273,2]
[378591018,1754919077883,-686.82,0.00020273,2]
[378591019,1754919077892,-460.0,0.00020273,2]
[378591020,1754919077901,-577.48,0.00020273,2]
[378591021,1754919077911,-627.52,0.00020273,2]
[378591022,1754919077920,-460.0,0.00020273,2]
[378591023,1754919077932,-471.41390067,0.00020273,2]
[378591024,1754919077941,-460.0,0.00020273,2]
[378591025,1754919077950,-460.0,0.00020273,2]
[378591026,1754919077960,-460.0,0.00020273,2]
[378591027,1754919077969,-793.18,0.00020273,2]
[378591028,1754919077979,-2507.91,0.00020273,2]
[378591029,1754919077987,-460.0,0.00020273,2]
[378591030,1754919077997,-460.0,0.00020273,2]
[378591031,1754919078006,-460.0,0.00020273,2]
[378591032,1754919078015,-460.0,0.00020273,2]
[378591033,1754919078025,-715.76,0.00020273,2]
[378591034,1754919078036,-460.0,0.00020273,2]
[378591035,1754919078046,-460.0,0.00020273,2]
[378591036,1754919078055,-460.0,0.00020273,2]
[378591037,1754919078064,-460.0,0.00020273,2]
[378591038,1754919078073,-460.0,0.00020273,2]
[378591039,1754919078082,-460.0,0.00020273,2]
[378591040,1754919078092,-766.13,0.00020273,2]
[378591041,1754919078101,-213.499224,0.00020273,2]
[378591042,1754919078110,-460.0,0.00020273,2]
[378591043,1754919078119,-460.0,0.00020273,2]
[378591044,1754919078129,-213.499224,0.00020273,2]
[378591045,1754919078138,-460.0,0.00020273,2]
[378591046,1754919078147,-460.0,0.00020273,2]
[378591047,1754919078157,-3754.87,0.00020273,2]
[378591048,1754919078167,-604.08,0.00020273,2]
[378591049,1754919078176,-4043.18,0.00020273,2]
[378591050,1754919078186,-460.0,0.00020273,2]
[378591051,1754919078195,-898.21,0.00020273,2]
[378591052,1754919078205,-460.0,0.00020273,2]
[378591053,1754919078215,-785.37,0.00020273,2]
[378591054,1754919078225,-1000.0,0.00020273,2]
[378591055,1754919078237,-490.82,0.00020273,2]
[378591056,1754919078253,-5298.29,0.00020273,2]
[378591057,1754919078263,-460.0,0.00020273,2]
[378591058,1754919078274,-4101.84,0.00020273,2]
[378591059,1754919078284,-2408.21,0.00020273,2]
[378591060,1754919078293,-460.0,0.00020273,2]
[378591061,1754919078303,-460.0,0.00020273,2]
[378591062,1754919078312,-460.0,0.00020273,2]
[378591063,1754919078322,-460.0,0.00020273,2]
[378591064,1754919078331,-547.02,0.00020273,2]
[378591065,1754919078340,-758.74,0.00020273,2]
[378591066,1754919078349,-460.0,0.00020273,2]
[378591067,1754919078358,-853.74,0.00020273,2]
[378591068,1754919078367,-460.0,0.00020273,2]
[378591069,1754919078376,-460.0,0.00020273,2]
[378591070,1754919078386,-732.83,0.00020273,2]
[378591071,1754919078395,-460.0,0.00020273,2]
[378591072,1754919078404,-1360.97,0.00020273,2]
[378591073,1754919078415,-1228.24,0.00020273,2]
[378591074,1754919078424,-1044.02,0.00020273,2]
[378591075,1754919078433,-460.0,0.00020273,2]
[378591076,1754919078442,-1031.12,0.00020273,2]
[378591077,1754919078452,-489.61,0.00020273,2]
[378591078,1754919078462,-13325.46,0.00020273,2]
[378591079,1754919078471,-2239.55,0.00020273,2]
[378591080,1754919078480,-460.0,0.00020273,2]
[378591081,1754919078490,-460.0,0.00020273,2]
[378591082,1754919078500,-471.55,0.00020273,2]
[378591083,1754919078509,-518.09,0.00020273,2]
[378591084,1754919078518,-913.9,0.00020273,2]
[378591085,1754919078528,-489.84,0.00020273,2]
[378591086,1754919078538,-460.0,0.00020273,2]
[378591087,1754919078547,-460.0,0.00020273,2]
[378591088,1754919078557,-936.99,0.00020273,2]
[378591089,1754919078567,-460.0,0.00020273,2]
[378591090,1754919078576,-460.0,0.00020273,2]
[378591091,1754919078586,-460.0,0.00020273,2]
[378591092,1754919078595,-460.0,0.00020273,2]
[378591093,1754919078605,-460.0,0.00020273,2]
[378591094,1754919078615,-1238.03,0.00020273,2]
[378591095,1754919078627,-460.0,0.00020273,2]
[378591096,1754919078637,-879.87,0.00020273,2]
[378591097,1754919078646,-492.43620659,0.00020273,2]
[378591098,1754919078655,-460.0,0.00020273,2]
[378591099,1754919078665,-460.0,0.00020273,2]
[378591100,1754919078674,-151.0,0.00020273,2]
[378591101,1754919078683,-1085.7,0.00020273,2]
[378591102,1754919078692,-460.0,0.00020273,2]
[378591103,1754919078702,-826.36,0.00020273,2]
[378591104,1754919078711,-1286.85,0.00020273,2]
[378591105,1754919078721,-570.56,0.00020273,2]
[378591106,1754919078731,-1578.16,0.00020273,2]
[378591107,1754919078740,-460.0,0.00020273,2]
[378591108,1754919078750,-460.0,0.00020273,2]
[378591109,1754919078759,-460.0,0.00020273,2]
[378591110,1754919078769,-460.0,0.00020273,2]
[378591111,1754919078778,-1373.46,0.00020273,2]
[378591112,1754919078788,-975.1,0.00020273,2]
[378591113,1754919078797,-460.0,0.00020273,2]
[378591114,1754919078807,-395.44448093,0.00020273,2]
[378591115,1754919078817,-460.0,0.00020273,2]
[378591116,1754919078826,-460.0,0.00020273,2]
[378591117,1754919078835,-460.0,0.00020273,2]
[378591118,1754919078844,-460.0,0.00020273,2]
[378591119,1754919078854,-678.54,0.00020273,2]
[378591120,1754919078864,-460.0,0.00020273,2]
[378591121,1754919078877,-3204.0,0.00020284,2]
[378591122,1754919078888,-151.0,0.00020287,2]
[378591123,1754919078898,-151.0,0.00020287,2]
[378591124,1754919078908,-151.0,0.00020287,2]
[378591125,1754919078918,-151.0,0.00020287,2]
[378591126,1754919078928,-151.0,0.00020287,2]
[378591127,1754919078938,-256.667412,0.00020287,2]
[378591128,1754919078948,-256.667412,0.00020287,2]
[378591129,1754919078958,-151.0,0.00020288,2]
[378591130,1754919078968,-3204.0,0.00020304,2]
[378591131,1754919078978,-669.0,0.00020306,2]
[378591132,1754919078989,-151.0,0.00020336,2]
[378591133,1754919078998,-151.0,0.00020336,2]
[378591134,1754919079009,-151.0,0.00020337,2]
[378591135,1754919079019,-500.0,0.00020337,2]
[378591136,1754919079029,-500.0,0.00020337,2]
[378591137,1754919079039,-500.0,0.00020337,2]
[378591138,1754919079054,-151.0,0.00020337,2]
[378591139,1754919079063,-151.0,0.00020337,2]
[378591140,1754919079073,-151.29225427,0.00020337,2]
[378591141,1754919079083,-151.0,0.00020337,2]
[378591142,1754919079093,-500.0,0.00020337,2]
[378591143,1754919079102,-151.0,0.00020337,2]
[378591144,1754919079112,-151.0,0.00020337,2]
[378591145,1754919079122,-198.0,0.00020337,2]
[378591146,1754919079131,-198.0,0.00020337,2]
[378591147,1754919079141,-198.0,0.00020337,2]
[378591148,1754919079151,-500.0,0.00020337,2]
[378591149,1754919079161,-500.0,0.00020337,2]
[378591150,1754919079170,-500.0,0.00020337,2]
[378591151,1754919079179,-3204.0,0.00020338,2]
[378591152,1754919079190,-3204.0,0.00020351,2]
[378591153,1754919079199,-669.0,0.00020355,2]
[378591154,1754919079209,-151.0,0.00020358,2]
[378591155,1754919079219,-151.0,0.00020358,2]
[378591156,1754919079232,-151.0,0.00020358,2]
[378591157,1754919079242,-151.0,0.00020358,2]
[378591158,1754919079251,-151.0,0.00020358,2]
[378591159,1754919079260,-151.0,0.00020359,2]
[378591160,1754919079271,-151.0,0.00020359,2]
[378591161,1754919079281,-151.0,0.00020359,2]
[378591162,1754919079291,-159.63872,0.00020359,2]
[378591163,1754919079300,-159.63872,0.00020359,2]
[378591164,1754919079310,-151.0,0.00020359,2]
[378591165,1754919079319,-669.0,0.00020387,2]
[378591166,1754919079328,-151.0,0.00020421,2]
[378591167,1754919079338,-151.0,0.00020421,2]
[378591168,1754919079347,-448.625596,0.0002046,2]
[378591169,1754919079356,-448.625596,0.0002046,2]
[378591170,1754919079523,-151.0,0.0002046,2]
[378591171,1754919079533,-160.264816,0.0002046,2]
[378591172,1754919079543,-160.264816,0.0002046,2]
[378591173,1754919079553,-151.0,0.0002046,2]
[378591174,1754919079562,-196.392852,0.0002046,2]
[378591175,1754919079572,-203.484998,0.0002046,2]
[378591176,1754919079582,-203.484998,0.0002046,2]
[378591177,1754919079591,-151.0,0.0002046,2]
[378591178,1754919079601,-151.0,0.0002046,2]
[378591179,1754919079611,-151.0,0.0002046,2]
[378591180,1754919079620,-151.0,0.00020463,2]
[378591181,1754919079630,-508.913389,0.00020491,2]
[378591182,1754919079639,-508.913389,0.00020491,2]
[378591183,1754919079649,-151.0,0.00020491,2]
[378591184,1754919079658,-303.718908,0.00020491,2]
[378591185,1754919079668,-303.718908,0.00020491,2]
[378591186,1754919079678,-637.211347,0.00020491,2]
[378591187,1754919079687,-637.211347,0.00020491,2]
[378591188,1754919079696,-2205.613961,0.00020491,2]
[378591189,1754919079706,-2205.613961,0.00020491,2]
[378591190,1754919079715,-1705.48519335,0.00020527,2]
[378591191,1754919079724,-151.0,0.00020535,2]
[378591192,1754919079734,-19187.29552238,0.00020535,2]
[378591193,1754919079743,-3359.0,0.00020537,2]
[378591194,1754919079753,-151.820141,0.00020541,2]
[378591195,1754919079762,-500.0,0.00020542,2]
[378591196,1754919079771,-151.0,0.00020547,2]
[378591197,1754919079781,-157.838256,0.00020547,2]
[378591198,1754919079790,-157.838256,0.00020547,2]
[378591199,1754919079800,-151.0,0.00020547,2]
[378591200,1754919079809,-571.835359,0.00020547,2]
[378591201,1754919079818,-571.835359,0.00020547,2]
[378591202,1754919079827,-151.0,0.00020547,2]
[378591203,1754919079836,-460.0,0.00020547,2]
[378591204,1754919079845,-151.0,0.00020547,2]
[378591205,1754919079855,-460.0,0.00020547,2]
[378591206,1754919079864,-513.91771714,0.00020547,2]
[378591207,1754919079874,-715.76,0.00020547,2]
[378591208,1754919079883,-703.51,0.00020547,2]
[378591209,1754919079892,-460.0,0.00020547,2]
[378591210,1754919079901,-460.0,0.00020547,2]
[378591211,1754919079911,-460.0,0.00020547,2]
[378591212,1754919079920,-666.28,0.00020547,2]
[378591213,1754919079929,-647.17,0.00020547,2]
[378591214,1754919079938,-507.23844565,0.00020547,2]
[378591215,1754919079948,-460.0,0.00020547,2]
[378591216,1754919079957,-460.0,0.00020547,2]
[378591217,1754919079966,-460.0,0.00020547,2]
[378591218,1754919079975,-460.0,0.00020547,2]
[378591219,1754919079985,-460.0,0.00020547,2]
[378591220,1754919079994,-460.0,0.00020547,2]
[378591221,1754919080003,-460.0,0.00020547,2]
[378591222,1754919080012,-460.0,0.00020547,2]
[378591223,1754919080022,-151.0,0.00020547,2]
[378591224,1754919080031,-460.0,0.00020547,2]
[378591225,1754919080040,-460.0,0.00020547,2]
[378591226,1754919080049,-460.0,0.00020547,2]
[378591227,1754919080058,-460.0,0.00020547,2]
[378591228,1754919080067,-151.0,0.00020547,2]
[378591229,1754919080076,-460.0,0.00020547,2]
[378591230,1754919080086,-460.0,0.00020547,2]
[378591231,1754919080095,-460.0,0.00020547,2]
[378591232,1754919080104,-460.0,0.00020547,2]
[378591233,1754919080113,-460.0,0.00020547,2]
[378591234,1754919080123,-782.95,0.00020547,2]
[378591235,1754919080134,-460.0,0.00020547,2]
[378591236,1754919080143,-500.0,0.00020547,2]
[378591237,1754919080153,-468.67,0.00020547,2]
[378591238,1754919080162,-460.0,0.00020547,2]
[378591239,1754919080171,-460.0,0.00020547,2]
[378591240,1754919080180,-932.86,0.00020547,2]
[378591241,1754919080190,-460.0,0.00020547,2]
[378591242,1754919080199,-460.0,0.00020547,2]
[378591243,1754919080208,-460.0,0.00020547,2]
[378591244,1754919080218,-460.0,0.00020547,2]
[378591245,1754919080227,-460.0,0.00020547,2]
[378591246,1754919080239,-515.65,0.00020547,2]
[378591247,1754919080250,-477.49,0.00020547,2]
[378591248,1754919080259,-151.0,0.00020547,2]
[378591249,1754919080268,-460.0,0.00020547,2]
[378591250,1754919080279,-460.0,0.00020547,2]
[378591251,1754919080288,-460.0,0.00020547,2]
[378591252,1754919080297,-460.0,0.00020547,2]
[378591253,1754919080307,-460.0,0.00020547,2]
[378591254,1754919080317,-460.0,0.00020547,2]
[378591255,1754919080326,-460.0,0.00020547,2]
[378591256,1754919080336,-460.0,0.00020547,2]
[378591257,1754919080345,-460.0,0.00020547,2]
[378591258,1754919080354,-515.7,0.00020547,2]
[378591259,1754919080363,-460.0,0.00020547,2]
[378591260,1754919080373,-460.0,0.00020547,2]
[378591261,1754919080382,-630.09,0.00020547,2]
[378591262,1754919080391,-564.68,0.00020547,2]
[378591263,1754919080401,-460.0,0.00020547,2]
[378591264,1754919080410,-460.0,0.00020547,2]
[378591265,1754919080419,-355.67000829,0.00020547,2]
[378591266,1754919080429,-460.0,0.00020547,2]
[378591267,1754919080438,-588.83,0.00020547,2]
[378591268,1754919080448,-534.88,0.00020547,2]
[378591269,1754919080457,-460.0,0.00020547,2]
[378591270,1754919080467,-1460.04,0.00020547,2]
[378591271,1754919080477,-460.0,0.00020547,2]
[378591272,1754919080489,-480.7435711,0.00020547,2]
[378591273,1754919080499,-460.0,0.00020547,2]
[378591274,1754919080508,-460.0,0.00020547,2]
[378591275,1754919080517,-460.0,0.00020547,2]
[378591276,1754919080527,-151.0,0.00020547,2]
[378591277,1754919080536,-460.0,0.00020547,2]
[378591278,1754919080548,-460.0,0.00020547,2]
[378591279,1754919080558,-460.0,0.00020547,2]
[378591280,1754919080567,-460.0,0.00020547,2]
[378591281,1754919080577,-742.19,0.00020547,2]
[378591282,1754919080586,-1006.46,0.00020547,2]
[378591283,1754919080596,-460.0,0.00020547,2]
[378591284,1754919080605,-983.5,0.00020547,2]
[378591285,1754919080615,-465.81389947,0.00020547,2]
[378591286,1754919080624,-460.0,0.00020547,2]
[378591287,1754919080634,-460.0,0.00020547,2]
[378591288,1754919080644,-822.18,0.00020547,2]
[378591289,1754919080653,-460.0,0.00020547,2]
[378591290,1754919080663,-1366.84,0.00020547,2]
[378591291,1754919080672,-1618.07,0.00020547,2]
[378591292,1754919080681,-481.64,0.00020547,2]
[378591293,1754919080691,-460.0,0.00020547,2]
[378591294,1754919080700,-460.0,0.00020547,2]
[378591295,1754919080710,-460.0,0.00020547,2]
[378591296,1754919080719,-460.0,0.00020547,2]
[378591297,1754919080729,-460.0,0.00020547,2]
[378591298,1754919080742,-151.0,0.00020547,2]
[378591299,1754919080751,-821.57,0.00020547,2]
[378591300,1754919080761,-460.0,0.00020547,2]
[378591301,1754919080771,-151.0,0.00020547,2]
[378591302,1754919080780,-590.29,0.00020547,2]
[378591303,1754919080790,-460.0,0.00020547,2]
[378591304,1754919080799,-1130.52,0.00020547,2]
[378591305,1754919080809,-460.0,0.00020547,2]
[378591306,1754919080819,-460.0,0.00020547,2]
[378591307,1754919080828,-361.8477,0.00020547,2]
[378591308,1754919080837,-658.43,0.00020547,2]
[378591309,1754919080847,-361.8477,0.00020547,2]
[378591310,1754919080856,-476.13,0.00020547,2]
[378591311,1754919080865,-460.0,0.00020547,2]
[378591312,1754919080875,-460.0,0.00020547,2]
[378591313,1754919080884,-460.0,0.00020547,2]
[378591314,1754919080893,-460.0,0.00020547,2]
[378591315,1754919080903,-474.92275701,0.00020547,2]
[378591316,1754919080912,-460.0,0.00020547,2]
[378591317,1754919080921,-460.0,0.00020547,2]
[378591318,1754919080931,-460.0,0.00020547,2]
[378591319,1754919080941,-881.93,0.00020547,2]
[378591320,1754919080950,-460.50222151,0.00020547,2]
[378591321,1754919080969,-460.0,0.00020547,2]
[378591322,1754919080981,-460.0,0.00020547,2]
[378591323,1754919080991,-460.0,0.00020547,2]
[378591324,1754919081000,-460.0,0.00020547,2]
[378591325,1754919081010,-460.0,0.00020547,2]
[378591326,1754919081020,-506.35,0.00020547,2]
[378591327,1754919081029,-460.0,0.00020547,2]
[378591328,1754919081040,-460.0,0.00020547,2]
[378591329,1754919081050,-646.29,0.00020547,2]
[378591330,1754919081060,-460.0,0.00020547,2]
[378591331,1754919081070,-460.0,0.00020547,2]
[378591332,1754919081080,-151.0,0.00020547,2]
[378591333,1754919081090,-211.51034252,0.00020547,2]
[378591334,1754919081100,-460.0,0.00020547,2]
[378591335,1754919081110,-460.0,0.00020547,2]
[378591336,1754919081120,-460.0,0.00020547,2]
[378591337,1754919081130,-460.0,0.00020547,2]
[378591338,1754919081140,-460.0,0.00020547,2]
[378591339,1754919081150,-1208.83,0.00020547,2]
[378591340,1754919081160,-473.04,0.00020547,2]
[378591341,1754919081170,-470.81,0.00020547,2]
[378591342,1754919081180,-832.99,0.00020547,2]
[378591343,1754919081190,-935.53,0.00020547,2]
[378591344,1754919081200,-224.25397933,0.00020547,2]
[378591345,1754919081210,-460.0,0.00020547,2]
[378591346,1754919081220,-151.0,0.00020547,2]
[378591347,1754919081235,-151.0,0.00020547,2]
[378591348,1754919081246,-460.0,0.00020547,2]
[378591349,1754919081261,-460.0,0.00020547,2]
[378591350,1754919081271,-806.7,0.00020547,2]
[378591351,1754919081282,-460.0,0.00020547,2]
[378591352,1754919081291,-460.0,0.00020547,2]
[378591353,1754919081301,-664.46,0.00020547,2]
[378591354,1754919081311,-480.61,0.00020547,2]
[378591355,1754919081322,-151.0,0.00020547,2]
[378591356,1754919081333,-1707.53,0.00020547,2]
[378591357,1754919081342,-746.56,0.00020547,2]
[378591358,1754919081351,-1339.12,0.00020547,2]
[378591359,1754919081361,-460.0,0.00020547,2]
[378591360,1754919081371,-460.0,0.00020547,2]
[378591361,1754919081380,-460.0,0.00020547,2]
[378591362,1754919081389,-460.0,0.00020547,2]
[378591363,1754919081399,-460.0,0.00020547,2]
[378591364,1754919081409,-405.84368222,0.00020547,2]
[378591365,1754919081418,-460.0,0.00020547,2]
[378591366,1754919081427,-460.0,0.00020547,2]
[378591367,1754919081437,-914.56,0.00020547,2]
[378591368,1754919081447,-695.81,0.00020547,2]
[378591369,1754919081457,-557.58,0.00020547,2]
[378591370,1754919081467,-460.0,0.00020547,2]
[378591371,1754919081477,-460.0,0.00020547,2]
[378591372,1754919081490,-460.0,0.00020547,2]
[378591373,1754919081500,-460.0,0.00020547,2]
[378591374,1754919081510,-387.026442,0.00020547,2]
[378591375,1754919081520,-224.92767404,0.00020547,2]
[378591376,1754919081530,-387.026442,0.00020547,2]
[378591377,1754919081761,-886.34,0.00020547,2]
[378591378,1754919081771,-901.64,0.00020547,2]
[378591379,1754919081781,-460.0,0.00020547,2]
[378591380,1754919081792,-460.0,0.00020547,2]
[378591381,1754919081801,-827.16,0.00020547,2]
[378591382,1754919081811,-460.0,0.00020547,2]
[378591383,1754919081822,-1809.73,0.00020547,2]
[378591384,1754919081832,-637.56,0.00020547,2]
[378591385,1754919081842,-561.8572985,0.00020547,2]
[378591386,1754919081852,-567.08,0.00020547,2]
[378591387,1754919081862,-496.3,0.00020547,2]
[378591388,1754919081872,-460.0,0.00020547,2]
[378591389,1754919081882,-3826.01,0.00020547,2]
[378591390,1754919081892,-568.3,0.00020547,2]
[378591391,1754919081903,-258.425602,0.00020547,2]
[378591392,1754919081913,-460.0,0.00020547,2]
[378591393,1754919081923,-691.68,0.00020547,2]
[378591394,1754919081932,-460.0,0.00020547,2]
[378591395,1754919081942,-460.0,0.00020547,2]
[378591396,1754919081951,-460.0,0.00020547,2]
[378591397,1754919081961,-1011.33,0.00020547,2]
[378591398,1754919081971,-460.0,0.00020547,2]
[378591399,1754919081980,-460.0,0.00020547,2]
[378591400,1754919081992,-460.0,0.00020547,2]
[378591401,1754919082001,-483.66,0.00020547,2]
[378591402,1754919082010,-406.07562561,0.00020547,2]
[378591403,1754919082020,-971.63,0.00020547,2]
[378591404,1754919082030,-3953.1,0.00020547,2]
[378591405,1754919082039,-460.0,0.00020547,2]
[378591406,1754919082049,-151.0,0.00020547,2]
[378591407,1754919082058,-460.0,0.00020547,2]
[378591408,1754919082070,-605.86,0.00020547,2]
[378591409,1754919082080,-460.0,0.00020547,2]
[378591410,1754919082090,-535.64,0.00020547,2]
[378591411,1754919082100,-2135.14,0.00020547,2]
[378591412,1754919082109,-460.0,0.00020547,2]
[378591413,1754919082119,-460.0,0.00020547,2]
[378591414,1754919082128,-463.20594433,0.00020547,2]
[378591415,1754919082138,-460.0,0.00020547,2]
[378591416,1754919082147,-1225.25,0.00020547,2]
[378591417,1754919082156,-460.0,0.00020547,2]
[378591418,1754919082166,-460.0,0.00020547,2]
[378591419,1754919082175,-549.53,0.00020547,2]
[378591420,1754919082185,-1050.87,0.00020547,2]
[378591421,1754919082194,-460.0,0.00020547,2]
[378591422,1754919082203,-460.0,0.00020547,2]
[378591423,1754919082213,-856.79,0.00020547,2]
[378591424,1754919082223,-1001.73,0.00020547,2]
[378591425,1754919082239,-460.0,0.00020547,2]
[378591426,1754919082248,-460.0,0.00020547,2]
[378591427,1754919082258,-460.0,0.00020547,2]
[378591428,1754919082269,-460.0,0.00020547,2]
[378591429,1754919082278,-357.7238161,0.00020547,2]
[378591430,1754919082288,-1018.15,0.00020547,2]
[378591431,1754919082298,-1637.25,0.00020547,2]
[378591432,1754919082308,-673.4,0.00020547,2]
[378591433,1754919082319,-460.0,0.00020547,2]
[378591434,1754919082327,-460.0,0.00020547,2]
[378591435,1754919082336,-460.0,0.00020547,2]
[378591436,1754919082346,-460.0,0.00020547,2]
[378591437,1754919082355,-460.0,0.00020547,2]
[378591438,1754919082365,-2795.15,0.00020547,2]
[378591439,1754919082377,-1979.8,0.00020547,2]
[378591440,1754919082387,-667.66,0.00020547,2]
[378591441,1754919082396,-460.0,0.00020547,2]
[378591442,1754919082406,-460.0,0.00020547,2]
[378591443,1754919082415,-460.0,0.00020547,2]
[378591444,1754919082424,-480.66,0.00020547,2]
[378591445,1754919082434,-836.56,0.00020547,2]
[378591446,1754919082443,-1384.5,0.00020547,2]
[378591447,1754919082453,-987.3,0.00020547,2]
[378591448,1754919082462,-460.0,0.00020547,2]
[378591449,1754919082471,-826.6,0.00020547,2]
[378591450,1754919082481,-460.0,0.00020547,2]
[378591451,1754919082494,-460.0,0.00020547,2]
[378591452,1754919082503,-498.41,0.00020547,2]
[378591453,1754919082513,-967.31,0.00020547,2]
[378591454,1754919082523,-496.37,0.00020547,2]
[378591455,1754919082532,-460.0,0.00020547,2]
[378591456,1754919082718,-460.0,0.00020547,2]
[378591457,1754919082745,-460.0,0.00020547,2]